fUSD/lending_fUSD_20260512
["ID","MTS","AMOUNT","RATE_DAILY","PERIOD"]
[422124449,1778590246000,-40011.0,0.00032686,10]
[422124450,1778590246000,-40045.0,0.00032702,10]
[422124453,1778590246000,-568.0,0.00032756,30]
[422124455,1778590246000,-40011.0,0.00032763,10]
[422124456,1778590246000,-282.44,0.000328,7]
[422124454,1778590246000,-1055.0,0.00032756,30]
[422124459,1778590246000,-748.0,0.00032877,2]
[422124447,1778590246000,-155.0,0.00032674,30]
[422124407,1778590246000,-151.9044108,0.00032208,2]
[422124383,1778590246000,-268.9873881,0.00031566,2]
[422124408,1778590246000,-4654.6164448,0.00032208,2]
[422124384,1778590246000,-3861.0502238,0.0003162,2]
[422124381,1778590246000,-1000.0,0.000315,7]
[422124386,1778590246000,-158.0,0.00031674,30]
[422124385,1778590246000,-155.0,0.00031674,30]
[422124389,1778590246000,-298.0,0.00031674,30]
[422124387,1778590246000,-327.0,0.00031674,30]
[422124388,1778590246000,-261.0,0.00031674,30]
[422124404,1778590246000,-40045.0,0.00032117,10]
[422124392,1778590246000,-282.44,0.000317,7]
[422124394,1778590246000,-1966.39575832,0.00031735,5]
[422124396,1778590246000,-154.0,0.00031756,30]
[422124393,1778590246000,-2437.27,0.00031734,7]
[422124395,1778590246000,-693.1,0.00031756,7]
[422124390,1778590246000,-155.0,0.00031674,30]
[422124401,1778590246000,-3540.0,0.00031843,2]
[422124400,1778590246000,-1005.275,0.00031843,2]
[422124410,1778590246000,-151.0,0.0003221,5]
[422124409,1778590246000,-2526.5552315,0.00032208,2]
[422124402,1778590246000,-161.5894468,0.00032,120]
[422124419,1778590246000,-40011.0,0.00032305,10]
[422124414,1778590246000,-40045.0,0.00032234,10]
[422124405,1778590246000,-40011.0,0.00032153,10]
[422124416,1778590246000,-206.09397691,0.00032297,2]
[422124403,1778590246000,-40011.0,0.00032076,10]
[422124399,1778590246000,-1055.0,0.00031756,30]
[422124397,1778590246000,-279.0,0.00031756,30]
[422124398,1778590246000,-568.0,0.00031756,30]
[422124412,1778590246000,-40011.0,0.00032229,10]
[422124498,1778590247000,-261.0,0.00033674,30]
[422124499,1778590247000,-298.0,0.00033674,30]
[422124493,1778590247000,-40011.0,0.00033601,15]
[422124497,1778590247000,-327.0,0.00033674,30]
[422124496,1778590247000,-158.0,0.00033674,30]
[422124492,1778590247000,-500.0,0.000336,5]
[422124495,1778590247000,-155.0,0.00033674,30]
[422124500,1778590247000,-155.0,0.00033674,30]
[422124491,1778590247000,-40011.0,0.00033525,15]
[422124490,1778590247000,-40045.0,0.0003352,15]
[422124494,1778590247000,-40045.0,0.00033637,15]
[422124503,1778590247000,-2437.27,0.00033689,14]
[422124516,1778590247000,-510.0,0.00034377,12]
[422124513,1778590247000,-151.0,0.00034182,7]
[422124515,1778590247000,-150.0,0.00034267,2]
[422124504,1778590247000,-154.0,0.00033756,30]
[422124505,1778590247000,-279.0,0.00033756,30]
[422124507,1778590247000,-1055.0,0.00033756,30]
[422124510,1778590247000,-2925.0,0.00033956,2]
[422124502,1778590247000,-40024.0,0.00033678,15]
[422124506,1778590247000,-568.0,0.00033756,30]
[422124511,1778590247000,-282.44,0.00034,30]
[422124509,1778590247000,-157.497,0.00033906,37]
[422124508,1778590247000,-1689.576,0.00033906,37]
[422124512,1778590247000,-517.83,0.00034147,30]
[422124501,1778590247000,-198.0,0.00033674,30]
[422124514,1778590247000,-41389.0,0.00034245,15]
[422124485,1778590247000,-40011.0,0.00033296,15]
[422124474,1778590247000,-40045.0,0.00032935,15]
[422124488,1778590247000,-40045.0,0.00033403,15]
[422124518,1778590247000,-1000.0,0.00034481,2]
[422124460,1778590247000,-275.33,0.00032877,2]
[422124461,1778590247000,-151.0,0.00032877,7]
[422124462,1778590247000,-151.0,0.00032877,7]
[422124466,1778590247000,-151.0,0.00032877,7]
[422124464,1778590247000,-151.0,0.00032877,7]
[422124465,1778590247000,-151.0,0.00032877,7]
[422124463,1778590247000,-151.0,0.00032877,7]
[422124469,1778590247000,-151.0,0.00032877,7]
[422124467,1778590247000,-151.0,0.00032877,7]
[422124470,1778590247000,-151.0,0.00032877,7]
[422124468,1778590247000,-151.0,0.00032877,7]
[422124477,1778590247000,-5149.61484915,0.00033,30]
[422124473,1778590247000,-40011.0,0.00032915,15]
[422124471,1778590247000,-219.362548,0.00032877,7]
[422124475,1778590247000,-510.0,0.00032952,10]
[422124472,1778590247000,-171.0940616,0.00032877,60]
[422124476,1778590247000,-40011.0,0.00032991,15]
[422124479,1778590247000,-40011.0,0.00033068,15]
[422124489,1778590247000,-40011.0,0.00033449,15]
[422124483,1778590247000,-40011.0,0.0003322,15]
[422124478,1778590247000,-40045.0,0.00033052,15]
[422124482,1778590247000,-40045.0,0.00033169,15]
[422124481,1778590247000,-150.0,0.00033149,2]
[422124480,1778590247000,-40011.0,0.00033144,15]
[422124484,1778590247000,-40045.0,0.00033286,15]
[422124486,1778590247000,-812.35,0.000333,7]
[422124487,1778590247000,-40011.0,0.00033373,15]
[422124520,1778590247000,-1000.0,0.00034481,2]
[422124523,1778590247000,-155.0,0.00034674,30]
[422124519,1778590247000,-1000.0,0.00034481,2]
[422124551,1778590247000,-275.33,0.00035616,2]
[422124550,1778590247000,-500.0,0.00035616,5]
[422124555,1778590247000,-155.0,0.00035674,30]
[422124554,1778590247000,-2437.27,0.00035645,30]
[422124565,1778590247000,-154.0,0.00035756,30]
[422124556,1778590247000,-158.0,0.00035674,30]
[422124559,1778590247000,-298.0,0.00035674,30]
[422124558,1778590247000,-261.0,0.00035674,30]
[422124563,1778590247000,-41389.0,0.00035718,15]
[422124562,1778590247000,-282.44,0.000357,30]
[422124560,1778590247000,-155.0,0.00035674,30]
[422124557,1778590247000,-327.0,0.00035674,30]
[422124561,1778590247000,-198.0,0.00035674,30]
[422124564,1778590247000,-268.9873881,0.00035737,120]
[422124566,1778590247000,-279.0,0.00035756,30]
[422124568,1778590247000,-1055.0,0.00035756,30]
[422124570,1778590247000,-150.0,0.00035981,2]
[422124575,1778590247000,-1000.0,0.00036048,2]
[422124569,1778590247000,-510.0,0.00035803,13]
[422124576,1778590247000,-1000.0,0.00036048,2]
[422124573,1778590247000,-11396.11589981,0.00036,60]
[422124571,1778590247000,-812.35,0.00036,7]
[422124572,1778590247000,-12499.35775415,0.00036,60]
[422124567,1778590247000,-568.0,0.00035756,30]
[422124574,1778590247000,-1000.0,0.00036048,2]
[422124577,1778590247000,-4114.75,0.0003606,30]
[422124579,1778590247000,-151.0,0.00036153,30]
[422124547,1778590247000,-500.0,0.00035616,7]
[422124549,1778590247000,-613.08454086,0.00035616,7]
[422124578,1778590247000,-150.0,0.00036149,2]
[422124546,1778590247000,-500.0,0.00035616,7]
[422124522,1778590247000,-150.0,0.00034521,60]
[422124517,1778590247000,-330.0,0.00034384,36]
[422124526,1778590247000,-261.0,0.00034674,30]
[422124521,1778590247000,-1150.17820742,0.00034481,2]
[422124525,1778590247000,-327.0,0.00034674,30]
[422124527,1778590247000,-298.0,0.00034674,30]
[422124524,1778590247000,-158.0,0.00034674,30]
[422124548,1778590247000,-500.0,0.00035616,7]
[422124530,1778590247000,-41389.0,0.00034736,15]
[422124540,1778590247000,-693.1,0.00035008,14]
[422124529,1778590247000,-198.0,0.00034674,30]
[422124531,1778590247000,-154.0,0.00034756,30]
[422124533,1778590247000,-568.0,0.00034756,30]
[422124528,1778590247000,-155.0,0.00034674,30]
[422124539,1778590247000,-150.0,0.00035,2]
[422124544,1778590247000,-1983.18,0.00035616,30]
[422124532,1778590247000,-279.0,0.00034756,30]
[422124552,1778590247000,-151.0,0.00035616,7]
[422124543,1778590247000,-1008.75464268,0.00035267,4]
[422124542,1778590247000,-41389.0,0.00035227,15]
[422124545,1778590247000,-500.0,0.00035616,5]
[422124553,1778590247000,-304.97722457,0.00035616,2]
[422124537,1778590247000,-202.30578908,0.00035,120]
[422124534,1778590247000,-1055.0,0.00034756,30]
[422124536,1778590247000,-1000.0,0.0003497,5]
[422124538,1778590247000,-1133.89897503,0.00035,60]
[422124535,1778590247000,-1500.0,0.00034795,2]
[422124541,1778590247000,-1500.0,0.000352,7]
[422124618,1778590248000,-5000.0,0.00037325,2]
[422124617,1778590248000,-5000.0,0.00037325,2]
[422124625,1778590248000,-300.0,0.00037387,2]
[422124626,1778590248000,-300.0,0.00037387,2]
[422124613,1778590248000,-230.83421799,0.00037278,30]
[422124615,1778590248000,-5000.0,0.00037325,2]
[422124616,1778590248000,-5000.0,0.00037325,2]
[422124614,1778590248000,-5026.19770332,0.00037325,2]
[422124610,1778590248000,-170.54795026,0.000372,120]
[422124608,1778590248000,-282.44,0.000371,30]
[422124622,1778590248000,-300.0,0.00037387,2]
[422124623,1778590248000,-300.0,0.00037387,2]
[422124635,1778590248000,-492.49408754,0.00037387,2]
[422124619,1778590248000,-300.0,0.00037387,2]
[422124621,1778590248000,-1094.29459015,0.00037387,2]
[422124620,1778590248000,-300.0,0.00037387,2]
[422124627,1778590248000,-300.0,0.00037387,2]
[422124632,1778590248000,-302.23579801,0.00037387,2]
[422124630,1778590248000,-300.0,0.00037387,2]
[422124629,1778590248000,-300.0,0.00037387,2]
[422124631,1778590248000,-599.99999998,0.00037387,2]
[422124628,1778590248000,-300.0,0.00037387,2]
[422124634,1778590248000,-300.0,0.00037387,2]
[422124633,1778590248000,-300.0,0.00037387,2]
[422124611,1778590248000,-510.0,0.00037229,15]
[422124639,1778590248000,-300.0,0.00037387,2]
[422124624,1778590248000,-300.0,0.00037387,2]
[422124607,1778590248000,-571.07791,0.000371,30]
[422124593,1778590248000,-298.0,0.00036674,30]
[422124605,1778590248000,-150.06576533,0.00036984,96]
[422124636,1778590248000,-300.0,0.00037387,2]
[422124580,1778590248000,-150.0,0.00036164,60]
[422124581,1778590248000,-41389.0,0.00036209,15]
[422124586,1778590248000,-182.99048036,0.00036624,2]
[422124583,1778590248000,-203.4106755,0.00036417,2]
[422124584,1778590248000,-1000.0,0.00036438,5]
[422124582,1778590248000,-640.09317243,0.0003634,5]
[422124585,1778590248000,-156.07,0.0003653,120]
[422124588,1778590248000,-206.09397691,0.00036647,2]
[422124599,1778590248000,-154.0,0.00036756,30]
[422124589,1778590248000,-166.0,0.00036674,30]
[422124587,1778590248000,-330.0,0.00036638,41]
[422124609,1778590248000,-41389.0,0.00037191,15]
[422124598,1778590248000,-1001.192122,0.00036712,5]
[422124595,1778590248000,-198.0,0.00036674,30]
[422124591,1778590248000,-327.0,0.00036674,30]
[422124597,1778590248000,-41389.0,0.000367,15]
[422124590,1778590248000,-158.0,0.00036674,30]
[422124594,1778590248000,-155.0,0.00036674,30]
[422124603,1778590248000,-263.1542694,0.00036806,93]
[422124602,1778590248000,-1055.0,0.00036756,30]
[422124600,1778590248000,-279.0,0.00036756,30]
[422124601,1778590248000,-568.0,0.00036756,30]
[422124606,1778590248000,-497.961043,0.00037,120]
[422124604,1778590248000,-200.0,0.00036967,2]
[422124612,1778590248000,-1507.83585126,0.0003726,5]
[422124596,1778590248000,-150.14,0.0003669,30]
[422124638,1778590248000,-300.00000001,0.00037387,2]
[422124592,1778590248000,-261.0,0.00036674,30]
[422124641,1778590248000,-604.21547136,0.00037387,2]
[422124669,1778590248000,-300.0,0.00037387,2]
[422124670,1778590248000,-1146.71946024,0.00037387,2]
[422124672,1778590248000,-864.10865205,0.00037387,2]
[422124676,1778590248000,-300.00000001,0.00037387,2]
[422124674,1778590248000,-1809.24690158,0.00037387,2]
[422124677,1778590248000,-300.0,0.00037387,2]
[422124681,1778590248000,-463.6616139,0.00037387,2]
[422124679,1778590248000,-300.0,0.00037387,2]
[422124680,1778590248000,-300.0,0.00037387,2]
[422124684,1778590248000,-300.0,0.00037387,2]
[422124678,1778590248000,-310.77293504,0.00037387,2]
[422124688,1778590248000,-300.0,0.00037387,2]
[422124671,1778590248000,-309.46605895,0.00037387,2]
[422124682,1778590248000,-300.0,0.00037387,2]
[422124687,1778590248000,-300.0,0.00037387,2]
[422124685,1778590248000,-451.72868137,0.00037387,2]
[422124686,1778590248000,-300.0,0.00037387,2]
[422124690,1778590248000,-300.0,0.00037387,2]
[422124692,1778590248000,-309.70196001,0.00037387,2]
[422124691,1778590248000,-483.88780455,0.00037387,2]
[422124695,1778590248000,-300.0,0.00037387,2]
[422124689,1778590248000,-444.69861481,0.00037387,2]
[422124693,1778590248000,-300.0,0.00037387,2]
[422124694,1778590248000,-1094.29459015,0.00037387,2]
[422124696,1778590248000,-300.0,0.00037387,2]
[422124637,1778590248000,-300.0,0.00037387,2]
[422124683,1778590248000,-576.93890108,0.00037387,2]
[422124675,1778590248000,-300.0,0.00037387,2]
[422124697,1778590248000,-300.0,0.00037387,2]
[422124668,1778590248000,-300.0,0.00037387,2]
[422124673,1778590248000,-300.0,0.00037387,2]
[422124652,1778590248000,-301.67321972,0.00037387,2]
[422124651,1778590248000,-300.0,0.00037387,2]
[422124645,1778590248000,-527.54022817,0.00037387,2]
[422124646,1778590248000,-300.0,0.00037387,2]
[422124640,1778590248000,-300.0,0.00037387,2]
[422124644,1778590248000,-300.0,0.00037387,2]
[422124650,1778590248000,-725.78568352,0.00037387,2]
[422124642,1778590248000,-300.0,0.00037387,2]
[422124649,1778590248000,-300.0,0.00037387,2]
[422124648,1778590248000,-893.04482543,0.00037387,2]
[422124647,1778590248000,-1066.50381929,0.00037387,2]
[422124653,1778590248000,-300.0,0.00037387,2]
[422124643,1778590248000,-300.0,0.00037387,2]
[422124657,1778590248000,-300.0,0.00037387,2]
[422124655,1778590248000,-300.45062341,0.00037387,2]
[422124667,1778590248000,-526.68525168,0.00037387,2]
[422124662,1778590248000,-853.86030012,0.00037387,2]
[422124659,1778590248000,-300.0,0.00037387,2]
[422124663,1778590248000,-300.0,0.00037387,2]
[422124665,1778590248000,-300.0,0.00037387,2]
[422124660,1778590248000,-300.0,0.00037387,2]
[422124656,1778590248000,-348.36222459,0.00037387,2]
[422124664,1778590248000,-1911.66155628,0.00037387,2]
[422124654,1778590248000,-300.0,0.00037387,2]
[422124658,1778590248000,-300.0,0.00037387,2]
[422124666,1778590248000,-343.84381003,0.00037387,2]
[422124661,1778590248000,-300.0,0.00037387,2]
[422124722,1778590249000,-301.67321972,0.00037387,2]
[422124725,1778590249000,-300.45062341,0.00037387,2]
[422124727,1778590249000,-300.0,0.00037387,2]
[422124731,1778590249000,-864.10865205,0.00037387,2]
[422124733,1778590249000,-1809.24690158,0.00037387,2]
[422124732,1778590249000,-300.00000001,0.00037387,2]
[422124726,1778590249000,-300.0,0.00037387,2]
[422124728,1778590249000,-1146.71946024,0.00037387,2]
[422124729,1778590249000,-309.46605895,0.00037387,2]
[422124724,1778590249000,-300.0,0.00037387,2]
[422124739,1778590249000,-300.0,0.00037387,2]
[422124734,1778590249000,-300.0,0.00037387,2]
[422124737,1778590249000,-300.0,0.00037387,2]
[422124738,1778590249000,-463.6616139,0.00037387,2]
[422124736,1778590249000,-300.0,0.00037387,2]
[422124735,1778590249000,-310.77293504,0.00037387,2]
[422124741,1778590249000,-451.72868137,0.00037387,2]
[422124745,1778590249000,-300.0,0.00037387,2]
[422124743,1778590249000,-300.0,0.00037387,2]
[422124723,1778590249000,-300.0,0.00037387,2]
[422124744,1778590249000,-300.0,0.00037387,2]
[422124730,1778590249000,-300.0,0.00037387,2]
[422124718,1778590249000,-893.04482543,0.00037387,2]
[422124707,1778590249000,-492.49408754,0.00037387,2]
[422124717,1778590249000,-1066.50381929,0.00037387,2]
[422124742,1778590249000,-300.0,0.00037387,2]
[422124699,1778590249000,-300.0,0.00037387,2]
[422124698,1778590249000,-300.0,0.00037387,2]
[422124702,1778590249000,-300.0,0.00037387,2]
[422124700,1778590249000,-300.0,0.00037387,2]
[422124704,1778590249000,-300.0,0.00037387,2]
[422124701,1778590249000,-300.0,0.00037387,2]
[422124703,1778590249000,-300.0,0.00037387,2]
[422124705,1778590249000,-300.0,0.00037387,2]
[422124708,1778590249000,-491.19814231,0.00037387,2]
[422124706,1778590249000,-300.0,0.00037387,2]
[422124709,1778590249000,-300.0,0.00037387,2]
[422124711,1778590249000,-300.0,0.00037387,2]
[422124714,1778590249000,-300.0,0.00037387,2]
[422124710,1778590249000,-300.0,0.00037387,2]
[422124713,1778590249000,-300.0,0.00037387,2]
[422124712,1778590249000,-604.21547136,0.00037387,2]
[422124716,1778590249000,-527.54022817,0.00037387,2]
[422124720,1778590249000,-725.78568352,0.00037387,2]
[422124719,1778590249000,-300.0,0.00037387,2]
[422124721,1778590249000,-300.0,0.00037387,2]
[422124715,1778590249000,-300.0,0.00037387,2]
[422124740,1778590249000,-576.93890108,0.00037387,2]
[422124747,1778590249000,-309.70196001,0.00037387,2]
[422124753,1778590249000,-300.0,0.00037387,2]
[422124780,1778590249000,-300.0,0.00037387,2]
[422124774,1778590249000,-300.0,0.00037387,2]
[422124778,1778590249000,-300.45062341,0.00037387,2]
[422124777,1778590249000,-300.0,0.00037387,2]
[422124779,1778590249000,-379.25258747,0.00037387,2]
[422124773,1778590249000,-725.78568352,0.00037387,2]
[422124776,1778590249000,-376.82623052,0.00037387,2]
[422124781,1778590249000,-300.0,0.00037387,2]
[422124782,1778590249000,-332.98327946,0.00037387,2]
[422124784,1778590249000,-853.86030012,0.00037387,2]
[422124785,1778590249000,-300.0,0.00037387,2]
[422124787,1778590249000,-300.0,0.00037387,2]
[422124786,1778590249000,-1911.66155628,0.00037387,2]
[422124789,1778590249000,-526.68525168,0.00037387,2]
[422124788,1778590249000,-343.84381003,0.00037387,2]
[422124790,1778590249000,-300.0,0.00037387,2]
[422124794,1778590249000,-1809.24690158,0.00037387,2]
[422124791,1778590249000,-1146.71946024,0.00037387,2]
[422124793,1778590249000,-864.10865205,0.00037387,2]
[422124792,1778590249000,-309.46605895,0.00037387,2]
[422124795,1778590249000,-329.45075992,0.00037387,2]
[422124775,1778590249000,-301.67321972,0.00037387,2]
[422124771,1778590249000,-1066.50381929,0.00037387,2]
[422124783,1778590249000,-300.0,0.00037387,2]
[422124772,1778590249000,-893.04482543,0.00037387,2]
[422124770,1778590249000,-527.54022817,0.00037387,2]
[422124752,1778590249000,-300.0,0.00037387,2]
[422124750,1778590249000,-1094.29459015,0.00037387,2]
[422124751,1778590249000,-300.0,0.00037387,2]
[422124748,1778590249000,-300.0,0.00037387,2]
[422124746,1778590249000,-483.88780455,0.00037387,2]
[422124754,1778590249000,-300.0,0.00037387,2]
[422124756,1778590249000,-406.9997469,0.00037387,2]
[422124755,1778590249000,-300.0,0.00037387,2]
[422124757,1778590249000,-300.0,0.00037387,2]
[422124758,1778590249000,-300.0,0.00037387,2]
[422124749,1778590249000,-300.0,0.00037387,2]
[422124769,1778590249000,-300.0,0.00037387,2]
[422124765,1778590249000,-300.0,0.00037387,2]
[422124761,1778590249000,-300.0,0.00037387,2]
[422124763,1778590249000,-300.0,0.00037387,2]
[422124760,1778590249000,-300.0,0.00037387,2]
[422124759,1778590249000,-300.0,0.00037387,2]
[422124764,1778590249000,-300.0,0.00037387,2]
[422124766,1778590249000,-604.21547136,0.00037387,2]
[422124768,1778590249000,-300.0,0.00037387,2]
[422124762,1778590249000,-492.49408754,0.00037387,2]
[422124767,1778590249000,-300.00000001,0.00037387,2]
[422124836,1778590250000,-343.84381003,0.00037387,2]
[422124842,1778590250000,-310.77293504,0.00037387,2]
[422124829,1778590250000,-300.0,0.00037387,2]
[422124832,1778590250000,-853.86030012,0.00037387,2]
[422124835,1778590250000,-300.0,0.00037387,2]
[422124833,1778590250000,-300.0,0.00037387,2]
[422124826,1778590250000,-301.67321972,0.00037387,2]
[422124831,1778590250000,-300.0,0.00037387,2]
[422124825,1778590250000,-432.74569949,0.00037387,2]
[422124827,1778590250000,-300.0,0.00037387,2]
[422124828,1778590250000,-300.45062341,0.00037387,2]
[422124834,1778590250000,-1911.66155628,0.00037387,2]
[422124838,1778590250000,-300.0,0.00037387,2]
[422124849,1778590250000,-300.0,0.00037387,2]
[422124837,1778590250000,-526.68525168,0.00037387,2]
[422124840,1778590250000,-309.46605895,0.00037387,2]
[422124841,1778590250000,-864.10865205,0.00037387,2]
[422124844,1778590250000,-463.6616139,0.00037387,2]
[422124843,1778590250000,-300.0,0.00037387,2]
[422124847,1778590250000,-451.72868137,0.00037387,2]
[422124846,1778590250000,-576.93890108,0.00037387,2]
[422124853,1778590250000,-300.0,0.00037387,2]
[422124852,1778590250000,-309.70196001,0.00037387,2]
[422124845,1778590250000,-300.0,0.00037387,2]
[422124848,1778590250000,-300.0,0.00037387,2]
[422124830,1778590250000,-300.0,0.00037387,2]
[422124839,1778590250000,-1146.71946024,0.00037387,2]
[422124824,1778590250000,-725.78568352,0.00037387,2]
[422124802,1778590250000,-300.0,0.00037387,2]
[422124821,1778590250000,-527.54022817,0.00037387,2]
[422124796,1778590250000,-310.77293504,0.00037387,2]
[422124798,1778590250000,-463.6616139,0.00037387,2]
[422124797,1778590250000,-300.0,0.00037387,2]
[422124800,1778590250000,-576.93890108,0.00037387,2]
[422124799,1778590250000,-300.0,0.00037387,2]
[422124851,1778590250000,-483.88780455,0.00037387,2]
[422124801,1778590250000,-451.72868137,0.00037387,2]
[422124804,1778590250000,-300.0,0.00037387,2]
[422124803,1778590250000,-300.0,0.00037387,2]
[422124805,1778590250000,-483.88780455,0.00037387,2]
[422124807,1778590250000,-300.0,0.00037387,2]
[422124812,1778590250000,-473.37164944,0.00037387,2]
[422124822,1778590250000,-1066.50381929,0.00037387,2]
[422124811,1778590250000,-300.0,0.00037387,2]
[422124808,1778590250000,-1094.29459015,0.00037387,2]
[422124813,1778590250000,-399.64911484,0.00037387,2]
[422124810,1778590250000,-300.0,0.00037387,2]
[422124814,1778590250000,-300.0,0.00037387,2]
[422124817,1778590250000,-300.0,0.00037387,2]
[422124806,1778590250000,-309.70196001,0.00037387,2]
[422124815,1778590250000,-300.0,0.00037387,2]
[422124816,1778590250000,-492.49408754,0.00037387,2]
[422124819,1778590250000,-604.21547136,0.00037387,2]
[422124818,1778590250000,-300.0,0.00037387,2]
[422124820,1778590250000,-300.0,0.00037387,2]
[422124823,1778590250000,-893.04482543,0.00037387,2]
[422124809,1778590250000,-350.43871365,0.00037387,2]
[422124850,1778590250000,-300.0,0.00037387,2]
[422124901,1778590250000,-604.21547136,0.00037387,2]
[422124855,1778590250000,-300.0,0.00037387,2]
[422124887,1778590250000,-451.72868137,0.00037387,2]
[422124882,1778590250000,-310.77293504,0.00037387,2]
[422124881,1778590250000,-1700.23596656,0.00037387,2]
[422124885,1778590250000,-300.0,0.00037387,2]
[422124884,1778590250000,-463.6616139,0.00037387,2]
[422124888,1778590250000,-300.0,0.00037387,2]
[422124889,1778590250000,-300.0,0.00037387,2]
[422124895,1778590250000,-300.0,0.00037387,2]
[422124893,1778590250000,-300.0,0.00037387,2]
[422124894,1778590250000,-1094.29459015,0.00037387,2]
[422124897,1778590250000,-300.0,0.00037387,2]
[422124896,1778590250000,-568.92601254,0.00037387,2]
[422124883,1778590250000,-300.0,0.00037387,2]
[422124900,1778590250000,-300.0,0.00037387,2]
[422124899,1778590250000,-300.0,0.00037387,2]
[422124903,1778590250000,-527.54022817,0.00037387,2]
[422124906,1778590250000,-725.78568352,0.00037387,2]
[422124908,1778590250000,-300.0,0.00037387,2]
[422124907,1778590250000,-301.67321972,0.00037387,2]
[422124910,1778590250000,-300.0,0.00037387,2]
[422124905,1778590250000,-893.04482543,0.00037387,2]
[422124911,1778590250000,-300.0,0.00037387,2]
[422124909,1778590250000,-300.45062341,0.00037387,2]
[422124904,1778590250000,-1066.50381929,0.00037387,2]
[422124912,1778590250000,-853.86030012,0.00037387,2]
[422124854,1778590250000,-1094.29459015,0.00037387,2]
[422124902,1778590250000,-300.0,0.00037387,2]
[422124886,1778590250000,-576.93890108,0.00037387,2]
[422124898,1778590250000,-492.49408754,0.00037387,2]
[422124879,1778590250000,-309.46605895,0.00037387,2]
[422124857,1778590250000,-300.0,0.00037387,2]
[422124890,1778590250000,-300.0,0.00037387,2]
[422124856,1778590250000,-300.0,0.00037387,2]
[422124859,1778590250000,-300.0,0.00037387,2]
[422124858,1778590250000,-492.49408754,0.00037387,2]
[422124864,1778590250000,-1066.50381929,0.00037387,2]
[422124861,1778590250000,-604.21547136,0.00037387,2]
[422124862,1778590250000,-300.0,0.00037387,2]
[422124865,1778590250000,-893.04482543,0.00037387,2]
[422124863,1778590250000,-527.54022817,0.00037387,2]
[422124866,1778590250000,-725.78568352,0.00037387,2]
[422124868,1778590250000,-300.0,0.00037387,2]
[422124867,1778590250000,-301.67321972,0.00037387,2]
[422124860,1778590250000,-300.0,0.00037387,2]
[422124870,1778590250000,-300.0,0.00037387,2]
[422124891,1778590250000,-483.88780455,0.00037387,2]
[422124892,1778590250000,-309.70196001,0.00037387,2]
[422124880,1778590250000,-864.10865205,0.00037387,2]
[422124875,1778590250000,-300.0,0.00037387,2]
[422124874,1778590250000,-1911.66155628,0.00037387,2]
[422124877,1778590250000,-526.68525168,0.00037387,2]
[422124873,1778590250000,-300.0,0.00037387,2]
[422124869,1778590250000,-300.45062341,0.00037387,2]
[422124878,1778590250000,-1146.71946024,0.00037387,2]
[422124876,1778590250000,-343.84381003,0.00037387,2]
[422124871,1778590250000,-300.0,0.00037387,2]
[422124872,1778590250000,-853.86030012,0.00037387,2]
[422124958,1778590251000,-864.10865205,0.00037387,2]
[422124948,1778590251000,-300.0,0.00037387,2]
[422124955,1778590251000,-526.68525168,0.00037387,2]
[422124953,1778590251000,-343.84381003,0.00037387,2]
[422124954,1778590251000,-300.0,0.00037387,2]
[422124982,1778590251000,-301.67321972,0.00037387,2]
[422124956,1778590251000,-1146.71946024,0.00037387,2]
[422124951,1778590251000,-300.0,0.00037387,2]